Cogmind - Beta 13 @@@ ROGUE MODE // 2024.04.10 @ 12:34:55 Player: alkaline Result: Destroyed by D-53 Grenadier with Mini Grenade Launcher Performance ------------- Evolutions (1) 500 Regions Visited (4) 800 Robots Destroyed (41) 205 Value Destroyed (1082) 1082 Prototype IDs (5) 100 Alien Tech Used (0) 0 Bonus (35) 35 TOTAL SCORE: 2722 Bonus ------- High Alert Combat Kills 35 Cogmind --------- Core Integrity 0/400 Matter 300/300 Energy 100/100 System Corruption 0% Temperature Cool (0) Movement Core (100) Ox1 Location -9/Mines Parts ------- > --- POWER (1) -------- (None) > --- PROPULSION (2) --- (None) > --- UTILITY (3) ------ Small Storage Unit > --- WEAPON (3) ------- (None) > --- INVENTORY (8) ---- Cooled Ion Engine Cooling System Medium Storage Unit Visual Processing Unit Recalibrator Improved Medium Laser Katana Peak State ------------ > --- POWER ------------ Cooled Ion Engine > --- PROPULSION ------- Light Treads Light Treads > --- UTILITY ---------- Cooling System Small Storage Unit Light Armor Plating > --- WEAPON ----------- Improved EM Shotgun Particle Cannon Particle Cannon > --- INVENTORY -------- Cooled Ion Engine Cooling System Medium Storage Unit Visual Processing Unit Recalibrator Improved Medium Laser Particle Cannon Katana [Rating: 18] Favorites ----------- Power Cooled Ion Engine Engine Cooled Ion Engine Propulsion Aluminum Leg Treads Light Treads Leg Aluminum Leg Wheel Wheel Utility Small Storage Unit Device Cooling System Storage Small Storage Unit Protection Light Armor Plating Weapon Particle Cannon Energy Gun Improved Medium Laser Energy Cannon Particle Cannon Ballistic Gun Assault Rifle Launcher Grenade Launcher Special Weapon Welding Torch Build | -11 -10 -10 -9 -9 ------- Run | Yrd Mat Min Mat Min Slots Evolved 2 | . . . 2 . Power . | . . . . . Propulsion . | . . . . . Utility 1 | . . . 1 . Weapon 1 | . . . 1 . Parts Attached 34 | 7 9 3 14 1 Power 3 | 1 2 . . . Engine 3 | 1 2 . . . Core . | . . . . . Reactor . | . . . . . Propulsion 9 | 3 1 1 4 . Treads 3 | . . 1 2 . Leg 3 | 2 1 . . . Wheel 3 | 1 . . 2 . Hover . | . . . . . Flight . | . . . . . Utility 5 | 1 1 1 2 . Device 1 | . . . 1 . Storage 1 | 1 . . . . Processor . | . . . . . Hackware . | . . . . . Protection 3 | . 1 1 1 . Artifact . | . . . . . Weapon 17 | 2 5 1 8 1 Energy Gun 4 | . . . 3 1 Energy Cannon 6 | . 1 . 5 . Ballistic Gun 5 | 2 2 1 . . Ballistic Cannon . | . . . . . Launcher 1 | . 1 . . . Special Weapon 1 | . 1 . . . Impact Weapon . | . . . . . Slashing Weapon . | . . . . . Piercing Weapon . | . . . . . Special Melee Weapon . | . . . . . Unidentified Prototypes 3 | . 1 . 2 . Parts Lost 11 | . . 3 . 8 Power 1 | . . . . 1 Propulsion 3 | . . 1 . 2 Utility 2 | . . 1 . 1 Weapon 5 | . . 1 . 4 Highest Loss Streak 8 | . . 3 . 8 To Critical Strikes . | . . . . . Average Slot Usage (%) 95 | . 96 88 97 85 Engine 12 | . 14 14 11 9 Treads 8 | . . 4 18 18 Leg 14 | . 28 17 . . Device 4 | . . . 11 9 Storage 12 | . 14 14 11 11 Protection 10 | . 10 11 11 8 Energy Cannon 16 | . 3 14 32 27 Ballistic Gun 8 | . 16 5 . . Launcher 4 | . 7 6 . . Naked Turns . | . . . . . Heaviest Build 30 | 13 23 23 30 30 Greatest Support 40 | 10 20 20 40 40 Greatest Overweight (x) 2 | 2 1 2 2 1 Average Overweight (x) . | . . 1 . . Largest Inventory Capacity 8 | 8 8 8 8 8 Average Capacity 7 | 6 8 8 8 8 Most Carried 8 | 1 8 8 8 8 Average Carried 6 | . 4 8 7 7 Final Capacity 8 | 8 8 8 8 8 Final Carried 8 | 1 8 8 8 7 Class Distribution -------------------- 59% | Mutant 40% | Tank Dominant Class ---------------- Mutant | -10/Materials Mutant | -10/Mines Tank | -9/Materials Tank | -9/Mines Resources | -11 -10 -10 -9 -9 ----------- Run | Yrd Mat Min Mat Min Matter Collected 720 | 234 205 70 211 . Remotely . | . . . . . Salvage Created 1145 | . 284 70 759 32 Parts 80 | . 29 4 45 2 Haulers Intercepted . | . . . . . Recyclers Shooed 2 | . 2 . . . Parts Field Recycled . | . . . . . Retrieved Matter . | . . . . . Parts Self-Destructed . | . . . . . Prevented . | . . . . . Kills | -11 -10 -10 -9 -9 ------- Run | Yrd Mat Min Mat Min Combat Hostiles Destroyed 37 | . 14 2 19 2 Guns 8 | . 8 . . . Cannons 22 | . . 2 18 2 AOE 6 | . 6 . . . Classes Destroyed 9 | . 5 1 2 1 Worker 1 | . . . 1 . Mechanic 2 | . 1 . 1 . Operator 1 | . 1 . . . Watcher 1 | . 1 . . . Swarmer 14 | . 9 . 4 1 Grunt 15 | . 5 . 10 . Duelist 1 | . . . 1 . Sentry 6 | . . 2 4 . Assembled 1 | . . . . 1 Best Kill Streak 5 | . 5 2 5 1 Combat Bots Only 4 | . 3 2 4 1 Max Kills in Single Turn 2 | . 2 1 2 1 Gunslinging . | . . . . . Exploded 2 | . 2 . . . Melee . | . . . . . Uniques/NPCs Destroyed . | . . . . . Combat | -11 -10 -10 -9 -9 -------- Run | Yrd Mat Min Mat Min Hostile Shots Fired 154 | . 57 16 60 21 Missed 35 | . 15 3 16 1 Damage Taken 2024 | . 396 257 510 861 Core 491 | . 67 15 99 310 Absorbed by Shields . | . . . . . Regen/Repaired (Parts) 33 | . . . 33 . Core Remaining (%) 83 | 100 . 67 . . Volleys Fired 85 | . 38 6 34 7 Largest 3 | . 2 2 3 3 Hottest 204 | . 68 98 204 204 Shots Fired 188 | . 58 9 102 19 Gun 43 | . 40 . 2 1 Cannon 127 | . 3 6 100 18 Launcher 10 | . 7 3 . . Special 8 | . 8 . . . Kinetic 40 | . 40 . . . Thermal 137 | . 11 6 102 18 Explosive 10 | . 7 3 . . Electromagnetic 1 | . . . . 1 Robot Hit Streak 11 | . 11 3 9 3 Robot Miss Streak 5 | . 3 3 5 3 Penetration Max . | . . . . . Secondary Targets 1 | . 1 . . . Max Gunslinging Chain 1 | . 1 . . . Shots Hit Robots 86 | . 28 5 48 5 Core Hits 55 | . 25 4 23 3 Critical Kills 1 | . . . 1 . Critical Parts Destroyed . | . . . . . Critical Strikes 1 | . . . 1 . Meltdown 1 | . . . 1 . Melee Attacks . | . . . . . Impact . | . . . . . Slashing . | . . . . . Piercing . | . . . . . Sneak Attacks . | . . . . . Combat Hostiles . | . . . . . Follow-up Attacks . | . . . . . Damage Inflicted 2279 | . 894 90 1143 152 Guns 308 | . 289 . . 19 Cannons 1351 | . 21 63 1143 124 Explosions 600 | . 573 27 . . Melee . | . . . . . Ramming 20 | . 11 . . 9 Kinetic 289 | . 289 . . . Thermal 1351 | . 21 63 1143 124 Explosive 600 | . 573 27 . . Electromagnetic 19 | . . . . 19 Impact . | . . . . . Slashing . | . . . . . Piercing . | . . . . . Highest Corruption 1 | . 1 1 . . Average Corruption 1 | . 1 1 . . Corruption Purged . | . . . . . Corruption Blocked . | . . . . . Effects 5 | . 4 1 . . Matter Fused 1 | . 1 . . . Heat Flow Errors 2 | . 2 . . . Data Loss (major) 1 | . 1 . . . Misfires 1 | . . 1 . . Overload Shots . | . . . . . Overflow Damage 3 | . 3 . . . Projectiles . | . . . . . Explosions 3 | . 3 . . . Melee . | . . . . . Knockbacks 1 | . . . . 1 Impact 1 | . . . . 1 Kinetic . | . . . . . Secondary . | . . . . . Self-Inflicted Damage 66 | . 2 64 . . Shots 4 | . 1 3 . . Rammed 1 | . . . . 1 Targets Rammed 3 | . 2 . . 1 Kicked 2 | . 2 . . . Crushed . | . . . . . Highest Temperature 427 | . 232 255 427 163 Average Temperature 124 | . 56 138 150 77 Received Heat Transfer 354 | . 96 81 177 . Effects 1 | . . . 1 . Shutdowns 1 | . . . 1 . Siege Activations . | . . . . . Robots Corrupted . | . . . . . Combat Hostiles . | . . . . . Parts Fried . | . . . . . Impact Corruptions . | . . . . . Robots Melted 1 | . . . 1 . Combat Hostiles 1 | . . . 1 . Parts Melted 6 | . . . 6 . Heat Transferred 2442 | . 37 111 2072 222 Parts Sabotaged . | . . . . . Parts Stolen . | . . . . . Parts Stripped . | . . . . . Power Chain Reactions . | . . . . . Alert | -11 -10 -10 -9 -9 ------- Run | Yrd Mat Min Mat Min Peak Influence 475 | . 203 64 475 204 Initial 184 | . . 19 24 184 Average 124 | . 66 44 217 188 Maximum Alert Level 2 | . 1 . 2 1 Low Security (%) 70 | 100 88 100 47 23 Level 1 25 | . 11 . 42 76 Level 2 3 | . . . 10 . Level 3 . | . . . . . Level 4 . | . . . . . Level 5 . | . . . . . High Security . | . . . . . Max Security . | . . . . . Squads Dispatched 3 | . 1 . 2 . Investigation 2 | . 1 . 1 . Extermination . | . . . . . Reinforcement 1 | . . . 1 . Assault . | . . . . . Garrison . | . . . . . Intercept . | . . . . . Searches Triggered . | . . . . . Construction Impeded . | . . . . . Haulers Reinforced . | . . . . . Active Scanning Responses . | . . . . . Cargo Convoy Interrupts . | . . . . . Stealth | -11 -10 -10 -9 -9 --------- Run | Yrd Mat Min Mat Min Distress Signals 2 | . 1 . 1 . Communications Jammed . | . . . . . Distress Signals . | . . . . . Times Spotted 65 | . 24 4 25 12 Peak Tracking Total 10 | . 5 2 6 10 Tactical Retreats . | . . . . . Traps | -11 -10 -10 -9 -9 ------- Run | Yrd Mat Min Mat Min Traps Triggered 1 | . 1 . . . Indirectly . | . . . . . Trap Hack Attempts . | . . . . . Triggered . | . . . . . Disarmed . | . . . . . Reprogrammed . | . . . . . Reused . | . . . . . Traps Extracted . | . . . . . Installed . | . . . . . Triggered . | . . . . . Machines | -11 -10 -10 -9 -9 ---------- Run | Yrd Mat Min Mat Min Machines Disabled 4 | . 1 1 2 . Max in Single Turn 1 | . 1 1 1 . Machines Repaired . | . . . . . Machines Dismantled . | . . . . . Machines Sabotaged . | . . . . . Overloaded Fab Kills . | . . . . . Hacking | -11 -10 -10 -9 -9 --------- Run | Yrd Mat Min Mat Min Machines Accessed 8 | . 4 . 4 . Terminals 5 | . 3 . 2 . Fabricators . | . . . . . Repair Stations 1 | . . . 1 . Recycling Units 1 | . 1 . . . Scanalyzers 1 | . . . 1 . Garrison Access . | . . . . . Total Hacks 21 | . 12 . 9 . Successful 10 | . 4 . 6 . Failed 11 | . 8 . 3 . Catastrophic 2 | . 1 . 1 . Database Lockouts . | . . . . . Manual . | . . . . . Terminals 14 | . 11 . 3 . Fabricators . | . . . . . Repair Stations 4 | . . . 4 . Recycling Units 1 | . 1 . . . Scanalyzers 2 | . . . 2 . Garrison Access . | . . . . . Terminal Hacks 4 | . 3 . 1 . Record 2 | . 2 . . . Robot Analysis 1 | . 1 . . . Prototype ID Bank 1 | . . . 1 . Fabricator Hacks . | . . . . . Repair Station Hacks 3 | . . . 3 . Scan Component 2 | . . . 2 . Repair 1 | . . . 1 . Recycling Unit Hacks 1 | . 1 . . . Report Inventory 1 | . 1 . . . Scanalyzer 2 | . . . 2 . Insert Component 1 | . . . 1 . Analyze 1 | . . . 1 . Garrison Access Hacks . | . . . . . Unauthorized Hacks . | . . . . . Terminals . | . . . . . Fabricators . | . . . . . Repair Stations . | . . . . . Recycling Units . | . . . . . Scanalyzers . | . . . . . Garrison Access . | . . . . . Data Cores Recovered . | . . . . . Used . | . . . . . Hacking Detections 4 | . 3 . 1 . Full Trace Events 4 | . 3 . 1 . Feedback Events . | . . . . . Feedback Blocked . | . . . . . Robot Schematics Acquired . | . . . . . Robots Built . | . . . . . Authchips . | . . . . . Time . | . . . . . Total Robot Build Rating . | . . . . . Part Schematics Acquired 1 | . . . 1 . Parts Built . | . . . . . Authchips . | . . . . . Time . | . . . . . Total Part Build Rating . | . . . . . Parts Repaired 1 | . . . 1 . Time 32 | . . . 32 . Parts Recycled . | . . . . . Recycled Matter . | . . . . . Retrieved Matter . | . . . . . Retrieved Components . | . . . . . Parts Scanalyzed 1 | . . . 1 . Part Schematics Acquired 1 | . . . 1 . Parts Damaged . | . . . . . Bothacking | -11 -10 -10 -9 -9 ------------ Run | Yrd Mat Min Mat Min Used RIF Installer . | . . . . . Robots Hacked . | . . . . . Non-combat . | . . . . . Combat . | . . . . . Robot Hacks Applied . | . . . . . Relay Couplers Released . | . . . . . Fabnet Peak Effective % . | . . . . . Robots Rewired . | . . . . . Allies Hacked . | . . . . . Hacks Repelled . | . . . . . Allies | -11 -10 -10 -9 -9 -------- Run | Yrd Mat Min Mat Min Total Allies 1 | . . . . 1 Largest Group 1 | . . . . 1 Highest-Rated Group 31 | . . . . 31 Highest-Rated Ally 31 | . . . . 31 Total Orders . | . . . . . Ally Attacks 4 | . . . . 4 Total Damage 20 | . . . . 20 Kills 1 | . . . . 1 Allies Corrupted . | . . . . . Allies Melted . | . . . . . Intel | -11 -10 -10 -9 -9 ------- Run | Yrd Mat Min Mat Min Robot Analysis Total 1 | . 1 . . . Derelict Logs Recovered . | . . . . . Drone Launches . | . . . . . Drone Recoveries . | . . . . . Exploration | -11 -10 -10 -9 -9 ------------- Run | Yrd Mat Min Mat Min Turns Passed 2199 | 77 1018 165 798 141 Spaces Moved 1150 | 42 556 71 407 74 Core 18 | 7 . . . 11 Treads 436 | . . 20 353 63 Legs 641 | 34 556 51 . . Wheels 55 | 1 . . 54 . Hover . | . . . . . Flight . | . . . . . Fastest Speed 50 | 50 120 190 95 100 Average Speed 162 | 157 159 208 160 153 Slowest Speed 260 | 190 190 260 240 240 Overloaded Moves . | . . . . . Propulsion Burnouts . | . . . . . Robots Hopped . | . . . . . Cave-ins Triggered . | . . . . . Exploration Rate (%) 33 | 4 80 20 37 25 Regions Visited 4 Branch Regions 2 Pre-discovered Areas 2 | . . 1 . 1 Known Exits Taken . | . . . . . Unknown Exits Taken 4 | 1 1 1 1 . Scrap Searched . | . . . . . Spaces Dug . | . . . . . Terrain Destroyed 53 | . 29 23 . 1 Melee . | . . . . . Projectile 1 | . . . . 1 AOE 52 | . 29 23 . . Terrain Rammed . | . . . . . Walls Destroyed . | . . . . . Machines Disabled . | . . . . . Actions | -11 -10 -10 -9 -9 --------- Run | Yrd Mat Min Mat Min Total 1324 | 50 632 80 475 87 Wait 15 | . 5 . 9 1 Move 1146 | 41 555 70 406 74 Hop . | . . . . . Pick Up 21 | 1 14 . 6 . Fast Attach 15 | 7 2 3 3 . Attach 6 | . 1 . 4 1 Detach . | . . . . . Swap 13 | . 6 . 7 . Drop 18 | 1 9 1 6 1 Fire 85 | . 38 6 34 7 Melee . | . . . . . Ram . | . . . . . Kick 2 | . 2 . . . Crush 1 | . . . . 1 Escape Stasis . | . . . . . Rewire 2 | . . . . 2 Trap . | . . . . . Miscellaneous . | . . . . . Route ------- -11/Scrapyard -10/Materials (discovered 3 exits: *Mat x2 / [*Min]) -10/Mines -9/Materials (discovered 3 exits: [*Mat] / [*Min] / [*Sto]) -9/Mines (discovered 2 exits: [*Mat] / [*Zio]) History --------- Turn | Location | Event 2 | -11/Scrapyard | Met Revision 17 15 | -11/Scrapyard | Discovered new exit (range 15) 78 | -11/Scrapyard | Entered Materials 327 | -10/Materials | Discovered new exit (range 8) 328 | -10/Materials | Build established: Mutant 517 | -10/Materials | Discovered new exit (range 4) 763 | -10/Materials | Discovered new exit (range 6) 1096 | -10/Materials | Entered Mines 1097 | -10/Mines | Learned location of Storage (-9) 1212 | -10/Mines | Lost 3 parts (1n1u1w) 1239 | -10/Mines | Discovered new exit (range 9) 1261 | -10/Mines | Entered Materials 1261 | -9/Materials | Evolved 2 slots: Utility x1, Weapon x1 1548 | -9/Materials | Repaired Particle Cannon? 1685 | -9/Materials | Discovered new exit (range 16) 1834 | -9/Materials | Discovered new exit (range 15) 1843 | -9/Materials | Build established: Tank 1890 | -9/Materials | Discovered new exit (range 16) 2059 | -9/Materials | Entered Mines 2064 | -9/Mines | Escorted by a lone wolf Derelict 2090 | -9/Mines | Discovered new exit (range 9) 2159 | -9/Mines | Assembled infested the area 2190 | -9/Mines | Core integrity fell below 50% 2195 | -9/Mines | Core integrity fell below 20% 2197 | -9/Mines | A Derelict revealed a hidden shortcut to a safe place 2200 | -9/Mines | Destroyed by D-53 Grenadier with Mini Grenade Launcher Last Messages --------------- 02194_ U-05 Engineer lays Concrete. 02195_ HV Slug penetrates as-82273. 02195_ as-82273 suffers critical hit (Destroy). 02195_ as-82273 destroyed. 02195_ HV Slug penetrates Wall. 02195_ as-56998 suffers critical hit (Destroy). 02196_ The unstable cave ceiling collapses. 02197_ A derelict emerges from the shadows: "It's not safe here! Let me show you to a place where you won't have to worry about staying in one piece!" 02197_ Attempting to rewire as-98553. 02197_ as-98553 cannot be rewired. 02197_ U-05 Engineer builds a Wall. 62-X8S(z) disappears into a concealed tunnel. 02199_ The unstable cave ceiling collapses. 02200_ Attempting to rewire as-56998. 02200_ as-56998 cannot be rewired. 02200_ as-98553 destroyed. 02200_ as-56998 destroyed. Map ----- +----------------------------------------------------+ | ??# #?# ###### ##???????? ????????????????? | | ??# #?# ####### ##???????? %" ????????????????? | | ??# #?# ####????????? ?????????????????? | | ??# #?# ##### #???????????? #?????????????????? | | ??# #?# #???# #??####?????? #?????????????????? | | ??# #?# #???# #### ###???? #?#???????????????? | | ??? ??# #???# ##?## # #???????????????? | | ??? ??# #???##### ### # ##### ?????????? | | ??? ??# #???????# ????????? | | ??? ??# #???????## ?????????? | | ??? ??# #????????##### = ######?????????????? | | ??? ??? ???????????# ##u #?????????????????? | | ???#??? ???????????# # ##????????????????? | | ??????? ???????????# ## ##???????????????? | | ??????? ??????????## t ##??????????????? | | ??????? ??????????# # #??????????????? | | ??????? ??????????# #??????????????? | | ??????? ??????????## ####???????????? | | ???????????????????## d #???????????? | | ????????????????????## d #???????????? | | ?????????????????????## ## #???????????? | | ?????????????????????# % # #?????????????? | | ?????????????????????# # #?????????????? | | ?????????????????????##%# #?????????????? | | ?????????????????######a ##?????????????? | | ????????????# > aa %@ ####??????????????? | | ????????????# a # % #?????????????????? | | ?????????? ##### #?????????????????? | | ??????????? ??????? ????????????????? | | ??????????? ???????????g ### #??????????????? | | ???????????????????????# ####???#??????????????? | | ???????????????????????#%??????????????????????? | | ???????????????????????#%??????????????????????? | | ???????????????????????# ??????????????????????? | | ??????????????????????? u??????????????????????? | | ???????????????????????% ??????????????????????? | | ??????????????????????? ??????????????????????? | | ???????????????????????#???????????????????????? | | ???????????????????????????????????????????????? | | ???????????????????????????????????????????????? | | ???????????????????????????????????????????????? | | ???????????????????????????????????????????????? | | ???????????????????????????????????????????????? | | ???????????????????????????????????????????????? | | ???????????????????????????????????????????????? | | ???????????????????????????????????????????????? | | ???????????????????????????????????????????????? | | | | | | | +----------------------------------------------------+ Best States ------------- Heat Dissipation 50 Energy Generation 14 Energy Capacity 280 Matter Stores 300 Matter Capacity 300 Sight Range 16 Terrain Scan Density 10 Armor Coverage 150 Evasion (%) 55 Recoil Reduction 2 Item Schematics ----------------- Visual Processing Unit | -9/Materials | Scanalyzed Robot Schematics ------------------ None Fabricated ------------ Nothing Alien Tech Used ----------------- None Achievements -------------- It's Just You Maybe Next Time I'll Detach My Launcher Part-time Mechanic Challenges ------------ None Game ------ Seed TeslaGreatCompressor Manual? 0 Play Time 00:31:42 Cumulative 2.1 hours Start 2024.04.10 @ 12:05:02 End 2024.04.10 @ 12:34:55 Sessions 1 Manual Loads 0 Difficulty Rogue Special Mode None Game No. 4 Rogue 4 Adventurer 0 Explorer 0 Win Type - Total 0 Types 0/0/0/0/0/0/0/0/0 Lore% 1 Gallery% 6 Achievement% 5 Wizard Run 0 Options --------- Layout 1 ASCII 0 Keyboard 0 Movement Mouse Keybinds 0 Fullscreen 1 Font 24/Smallcaps Map View 50x35 Zoom Use 0% Tactical HUD 1 Map Filters NONE Filters NONE Steam 1 RUN: e35a6546-5d4c-4fad-bd09-cf585f18c7f2